fUSD/lending_fUSD_20241107
["ID","MTS","AMOUNT","RATE_DAILY","PERIOD"]
[341574867,1731005496314,-500.0,0.00029312,2]
[341574868,1731005496324,-500.0,0.00029312,2]
[341574869,1731005496336,-151.0,0.00029312,7]
[341574870,1731005496346,-835.86,0.00029312,2]
[341574871,1731005496356,-500.0,0.00029312,2]
[341574872,1731005496366,-500.0,0.00029312,2]
[341574873,1731005496376,-500.0,0.00029312,2]
[341574874,1731005496385,-514.04,0.00029312,2]
[341574875,1731005496396,-1245.93,0.00029312,2]
[341574876,1731005496406,-579.96,0.00029312,2]
[341574877,1731005496416,-3252.41,0.00029312,2]
[341574878,1731005496426,-808.64,0.00029312,2]
[341574879,1731005496436,-1820.75,0.00029312,2]
[341574880,1731005496445,-500.0,0.00029312,2]
[341574881,1731005496455,-500.0,0.00029312,2]
[341574882,1731005496465,-1711.32,0.00029312,2]
[341574883,1731005496475,-1964.97,0.00029312,2]
[341574884,1731005496486,-1005.55,0.00029312,2]
[341574885,1731005496496,-2633.57,0.00029312,2]
[341574886,1731005496505,-500.0,0.00029312,2]
[341574887,1731005496515,-1110.86,0.00029312,2]
[341574888,1731005496525,-6468.1,0.00029312,2]
[341574889,1731005496535,-500.0,0.00029312,2]
[341574890,1731005496545,-500.0,0.00029312,2]
[341574891,1731005496555,-500.0,0.00029312,2]
[341574892,1731005496565,-500.0,0.00029312,2]
[341574893,1731005496574,-526.91,0.00029312,2]
[341574894,1731005496584,-4276.72,0.00029312,2]
[341574895,1731005496594,-677.56,0.00029312,2]
[341574896,1731005496603,-500.0,0.00029312,2]
[341574897,1731005496613,-2154.23,0.00029312,2]
[341574898,1731005496622,-500.0,0.00029312,2]
[341574899,1731005496633,-500.0,0.00029312,2]
[341574900,1731005496643,-1485.0,0.00029312,2]
[341574901,1731005496654,-500.0,0.00029312,2]
[341574902,1731005496664,-562.24,0.00029312,2]
[341574903,1731005496675,-500.0,0.00029312,2]
[341574904,1731005496686,-2009.69,0.00029312,2]
[341574905,1731005496696,-1026.08,0.00029312,2]
[341574906,1731005496707,-3595.56,0.00029312,2]
[341574907,1731005496717,-2336.8,0.00029312,2]
[341574908,1731005496728,-2336.8,0.00029312,2]
[341574909,1731005496738,-1616.18,0.00029312,2]
[341574910,1731005496749,-887.45,0.00029312,2]
[341574911,1731005496759,-500.0,0.00029312,2]
[341574912,1731005496770,-500.0,0.00029312,2]
[341574913,1731005496779,-575.52,0.00029312,2]
[341574914,1731005496789,-1245.31,0.00029312,2]
[341574915,1731005496799,-3430.71,0.00029312,2]
[341574916,1731005496808,-508.17,0.00029312,2]
[341574917,1731005496817,-500.0,0.00029312,2]
[341574918,1731005496827,-927.65,0.00029312,2]
[341574919,1731005496836,-1257.88,0.00029312,2]
[341574920,1731005496845,-1242.44,0.00029312,2]
[341574921,1731005496855,-200.0,0.00029312,2]
[341574922,1731005496864,-9924.2,0.00029312,2]
[341574923,1731005496873,-514.48,0.00029312,2]
[341574924,1731005496882,-1994.21,0.00029312,2]
[341574925,1731005496891,-500.0,0.00029312,2]
[341574926,1731005496902,-1946.0,0.00029312,2]
[341574927,1731005496912,-1206.57,0.00029312,2]
[341574928,1731005496921,-1641.91,0.00029312,2]
[341574929,1731005496930,-692.5,0.00029312,2]
[341574930,1731005496940,-500.0,0.00029312,2]
[341574931,1731005496950,-500.0,0.00029312,2]
[341574932,1731005496959,-500.0,0.00029312,2]
[341574933,1731005496969,-769.86,0.00029312,2]
[341574934,1731005496979,-500.0,0.00029312,2]
[341574935,1731005496988,-151.0,0.00029313,7]
[341574936,1731005496998,-228.034073,0.00029313,7]
[341574937,1731005497007,-228.034073,0.00029313,7]
[341574938,1731005497017,-151.0,0.00029313,7]
[341574939,1731005497026,-566.850088,0.00029313,7]
[341574940,1731005497035,-395.594859,0.00029313,7]
[341574941,1731005497046,-395.594859,0.00029313,7]
[341574942,1731005497056,-151.0,0.00029313,7]
[341574943,1731005497067,-151.0,0.00029313,7]
[341574944,1731005497078,-288.642065,0.00029313,7]
[341574945,1731005497089,-150.0,0.00029313,30]
[341574946,1731005497101,-500.0,0.00029313,2]
[341574947,1731005497111,-500.0,0.00029313,2]
[341574948,1731005497122,-628.2,0.00029313,2]
[341574949,1731005497131,-500.0,0.00029313,2]
[341574950,1731005497140,-500.0,0.00029313,2]
[341574951,1731005497151,-500.0,0.00029313,2]
[341574952,1731005497161,-682.97,0.00029313,2]
[341574953,1731005497172,-500.0,0.00029313,2]
[341574954,1731005497182,-500.0,0.00029313,2]
[341574955,1731005497193,-500.0,0.00029313,2]
[341574956,1731005497203,-892.16,0.00029313,2]
[341574957,1731005497213,-155.056853,0.00029313,7]
[341574958,1731005497224,-155.056853,0.00029313,7]
[341574959,1731005497234,-500.0,0.00029313,2]
[341574960,1731005497244,-182.88671433,0.00029313,2]
[341574961,1731005497258,-500.0,0.00029313,2]
[341574962,1731005497269,-500.0,0.00029313,2]
[341574963,1731005497279,-351.773366,0.00029313,7]
[341574964,1731005497289,-601.08,0.00029313,2]
[341574965,1731005497302,-500.0,0.00029313,2]
[341574966,1731005497311,-500.0,0.00029313,2]
[341574967,1731005497321,-351.773366,0.00029313,7]
[341574968,1731005497332,-500.0,0.00029313,2]
[341574969,1731005497342,-500.0,0.00029313,2]
[341574970,1731005497352,-500.0,0.00029313,2]
[341574971,1731005497362,-500.0,0.00029313,2]
[341574972,1731005497371,-500.0,0.00029313,2]
[341574973,1731005497381,-500.0,0.00029313,2]
[341574974,1731005497391,-500.0,0.00029313,2]
[341574975,1731005497400,-500.0,0.00029313,2]
[341574976,1731005497410,-500.0,0.00029313,2]
[341574977,1731005497420,-500.0,0.00029313,2]
[341574978,1731005497430,-500.0,0.00029313,2]
[341574979,1731005497439,-639.86,0.00029313,2]
[341574980,1731005497449,-500.0,0.00029313,2]
[341574981,1731005497458,-1540.13,0.00029313,2]
[341574982,1731005497468,-500.0,0.00029313,2]
[341574983,1731005497478,-152.690316,0.00029313,7]
[341574984,1731005497488,-500.0,0.00029313,2]
[341574985,1731005497498,-582.41,0.00029313,2]
[341574986,1731005497508,-500.0,0.00029313,2]
[341574987,1731005497518,-500.0,0.00029313,2]
[341574988,1731005497528,-500.0,0.00029313,2]
[341574989,1731005497538,-517.10998928,0.00029313,2]
[341574990,1731005497547,-500.0,0.00029313,2]
[341574991,1731005497557,-538.84497453,0.00029313,2]
[341574992,1731005497567,-151.0,0.00029313,7]
[341574993,1731005497576,-500.0,0.00029313,2]
[341574994,1731005497587,-151.0,0.00029313,7]
[341574995,1731005497596,-500.0,0.00029313,2]
[341574996,1731005497606,-500.0,0.00029313,2]
[341574997,1731005497616,-151.0,0.00029313,7]
[341574998,1731005497626,-500.0,0.00029313,2]
[341574999,1731005497635,-500.0,0.00029313,2]
[341575000,1731005497645,-500.0,0.00029313,2]
[341575001,1731005497655,-500.0,0.00029313,2]
[341575002,1731005497665,-417.47708723,0.00029313,2]
[341575003,1731005497675,-500.0,0.00029313,2]
[341575004,1731005497684,-632.46445161,0.00029313,2]
[341575005,1731005497694,-500.0,0.00029313,2]
[341575006,1731005497703,-151.0,0.00029313,7]
[341575007,1731005497713,-669.8,0.00029313,2]
[341575008,1731005497724,-500.0,0.00029313,2]
[341575009,1731005497734,-511.43220146,0.00029313,2]
[341575010,1731005497744,-500.0,0.00029313,2]
[341575011,1731005497754,-500.0,0.00029313,2]
[341575012,1731005497764,-500.0,0.00029313,2]
[341575013,1731005497775,-768.32,0.00029313,2]
[341575014,1731005497784,-570.51569988,0.00029313,2]
[341575015,1731005497795,-828.57,0.00029313,2]
[341575016,1731005497806,-570.22,0.00029313,2]
[341575017,1731005497816,-584.92304745,0.00029313,2]
[341575018,1731005497827,-650.71,0.00029313,2]
[341575019,1731005497838,-500.0,0.00029313,2]
[341575020,1731005497848,-500.0,0.00029313,2]
[341575021,1731005497857,-500.0,0.00029313,2]
[341575022,1731005497866,-500.0,0.00029313,2]
[341575023,1731005497876,-500.0,0.00029313,2]
[341575024,1731005497886,-500.0,0.00029313,2]
[341575025,1731005497896,-500.0,0.00029313,2]
[341575026,1731005497906,-500.0,0.00029313,2]
[341575027,1731005497916,-1733.9,0.00029313,2]
[341575028,1731005497926,-1638.5,0.00029313,2]
[341575029,1731005497935,-1855.35,0.00029313,2]
[341575030,1731005497945,-509.27,0.00029313,2]
[341575031,1731005497954,-500.0,0.00029313,2]
[341575032,1731005497964,-930.12,0.00029313,2]
[341575033,1731005497974,-500.0,0.00029313,2]
[341575034,1731005497983,-500.0,0.00029313,2]
[341575035,1731005497993,-500.0,0.00029313,2]
[341575036,1731005498003,-151.0,0.00029313,7]
[341575037,1731005498012,-911.47,0.00029313,2]
[341575038,1731005498022,-1629.74,0.00029313,2]
[341575039,1731005498031,-578.59,0.00029313,2]
[341575040,1731005498041,-500.0,0.00029313,2]
[341575041,1731005498051,-1433.46,0.00029313,2]
[341575042,1731005498061,-500.0,0.00029313,2]
[341575043,1731005498071,-500.0,0.00029313,2]
[341575044,1731005498081,-2481.61,0.00029313,2]
[341575045,1731005498090,-518.14,0.00029313,2]
[341575046,1731005498100,-1002.64,0.00029313,2]
[341575047,1731005498109,-1037.98,0.00029313,2]
[341575048,1731005498119,-500.0,0.00029313,2]
[341575049,1731005498129,-151.0,0.00029313,7]
[341575050,1731005498139,-4139.66,0.00029313,2]
[341575051,1731005498150,-892.76,0.00029313,2]
[341575052,1731005498243,-647.31,0.00029313,2]
[341575053,1731005498252,-1348.35,0.00029313,2]
[341575054,1731005498262,-151.0,0.00029313,7]
[341575055,1731005498272,-500.0,0.00029313,2]
[341575056,1731005498282,-151.0,0.00029313,7]
[341575057,1731005498292,-589.84,0.00029313,2]
[341575058,1731005498303,-1734.61,0.00029313,2]
[341575059,1731005498313,-500.0,0.00029313,2]
[341575060,1731005498323,-500.0,0.00029313,2]
[341575061,1731005498333,-500.0,0.00029313,2]
[341575062,1731005498343,-500.0,0.00029313,2]
[341575063,1731005498352,-521.2,0.00029313,2]
[341575064,1731005498362,-500.0,0.00029313,2]
[341575065,1731005498371,-500.0,0.00029313,2]
[341575066,1731005498381,-151.0,0.00029313,7]
[341575067,1731005498390,-500.0,0.00029313,2]
[341575068,1731005498401,-500.0,0.00029313,2]
[341575069,1731005498411,-1185.81,0.00029313,2]
[341575070,1731005498422,-500.0,0.00029313,2]
[341575071,1731005498432,-500.0,0.00029313,2]
[341575072,1731005498442,-151.0,0.00029313,7]
[341575073,1731005498452,-500.0,0.00029313,2]
[341575074,1731005498462,-904.95,0.00029313,2]
[341575075,1731005498472,-500.0,0.00029313,2]
[341575076,1731005498481,-165.666979,0.00029313,7]
[341575077,1731005498491,-1074.81,0.00029313,2]
[341575078,1731005498501,-500.0,0.00029313,2]
[341575079,1731005498511,-1215.48,0.00029313,2]
[341575080,1731005498520,-837.56,0.00029313,2]
[341575081,1731005498530,-500.0,0.00029313,2]
[341575082,1731005498540,-1493.93,0.00029313,2]
[341575083,1731005498549,-652.59,0.00029313,2]
[341575084,1731005498559,-1134.06,0.00029313,2]
[341575085,1731005498569,-892.46,0.00029313,2]
[341575086,1731005498578,-517.26390607,0.00029313,2]
[341575087,1731005498588,-500.0,0.00029313,2]
[341575088,1731005498598,-500.0,0.00029313,2]
[341575089,1731005498607,-511.27,0.00029313,2]
[341575090,1731005498616,-739.93,0.00029313,2]
[341575091,1731005498626,-500.0,0.00029313,2]
[341575092,1731005498635,-1581.39,0.00029313,2]
[341575093,1731005498644,-500.0,0.00029313,2]
[341575094,1731005498656,-956.92,0.00029313,2]
[341575095,1731005498665,-500.0,0.00029313,2]
[341575096,1731005498675,-500.0,0.00029313,2]
[341575097,1731005498684,-500.0,0.00029313,2]
[341575098,1731005498694,-500.0,0.00029313,2]
[341575099,1731005498703,-605.61,0.00029313,2]
[341575100,1731005498713,-922.75,0.00029313,2]
[341575101,1731005498723,-500.0,0.00029313,2]
[341575102,1731005498732,-919.73,0.00029313,2]
[341575103,1731005498742,-500.0,0.00029313,2]
[341575104,1731005498751,-1751.48,0.00029313,2]
[341575105,1731005498761,-973.17,0.00029313,2]
[341575106,1731005498771,-500.0,0.00029313,2]
[341575107,1731005498780,-510.51,0.00029313,2]
[341575108,1731005498790,-967.16,0.00029313,2]
[341575109,1731005498799,-708.923183,0.00029313,7]
[341575110,1731005498810,-500.0,0.00029313,2]
[341575111,1731005498820,-708.923183,0.00029313,7]
[341575112,1731005498830,-500.0,0.00029313,2]
[341575113,1731005498840,-500.0,0.00029313,2]
[341575114,1731005498849,-500.0,0.00029313,2]
[341575115,1731005498858,-1802.27,0.00029313,2]
[341575116,1731005498868,-1247.64,0.00029313,2]
[341575117,1731005498877,-500.0,0.00029313,2]
[341575118,1731005498886,-1705.41,0.00029313,2]
[341575119,1731005498896,-500.0,0.00029313,2]
[341575120,1731005498907,-884.38,0.00029313,2]
[341575121,1731005498917,-1976.45,0.00029313,2]
[341575122,1731005498927,-151.0,0.00029313,7]
[341575123,1731005498936,-500.0,0.00029313,2]
[341575124,1731005498946,-838.0,0.00029313,2]
[341575125,1731005498955,-500.0,0.00029313,2]
[341575126,1731005498965,-1439.59,0.00029313,2]
[341575127,1731005498974,-919.11,0.00029313,2]
[341575128,1731005498983,-500.0,0.00029313,2]
[341575129,1731005498993,-826.38,0.00029313,2]
[341575130,1731005499003,-500.0,0.00029313,2]
[341575131,1731005499012,-500.0,0.00029313,2]
[341575132,1731005499022,-518.35,0.00029313,2]
[341575133,1731005499031,-500.0,0.00029313,2]
[341575134,1731005499041,-500.0,0.00029313,2]
[341575135,1731005499050,-500.0,0.00029313,2]
[341575136,1731005499059,-505.06657171,0.00029313,2]
[341575137,1731005499069,-1009.6,0.00029313,2]
[341575138,1731005499078,-1002.05,0.00029313,2]
[341575139,1731005499088,-2527.2,0.00029313,2]
[341575140,1731005499097,-1144.57,0.00029313,2]
[341575141,1731005499106,-500.0,0.00029313,2]
[341575142,1731005499116,-1071.74,0.00029313,2]
[341575143,1731005499125,-500.0,0.00029313,2]
[341575144,1731005499135,-1188.09,0.00029313,2]
[341575145,1731005499144,-617.6939916,0.00029313,2]
[341575146,1731005499155,-500.0,0.00029313,2]
[341575147,1731005499165,-500.0,0.00029313,2]
[341575148,1731005499175,-845.34,0.00029313,2]
[341575149,1731005499184,-578.54,0.00029313,2]
[341575150,1731005499193,-500.0,0.00029313,2]
[341575151,1731005499202,-507.46680102,0.00029313,2]
[341575152,1731005499211,-500.0,0.00029313,2]
[341575153,1731005499221,-500.0,0.00029313,2]
[341575154,1731005499230,-528.65,0.00029313,2]
[341575155,1731005499241,-1081.76,0.00029313,2]
[341575156,1731005499252,-151.0,0.00029313,7]
[341575157,1731005499261,-1104.64,0.00029313,2]
[341575158,1731005499271,-245.972545,0.00029313,7]
[341575159,1731005499280,-500.0,0.00029313,2]
[341575160,1731005499291,-151.0,0.00029313,7]
[341575161,1731005499300,-245.972545,0.00029313,7]
[341575162,1731005499310,-500.0,0.00029313,2]
[341575163,1731005499320,-500.0,0.00029313,2]
[341575164,1731005499331,-500.0,0.00029313,2]
[341575165,1731005499341,-1167.6,0.00029313,2]
[341575166,1731005499351,-529.22,0.00029313,2]
[341575167,1731005499360,-500.0,0.00029313,2]
[341575168,1731005499370,-517.85044234,0.00029313,2]
[341575169,1731005499379,-1599.73,0.00029313,2]
[341575170,1731005499389,-514.2,0.00029313,2]
[341575171,1731005499401,-500.0,0.00029313,2]
[341575172,1731005499411,-329.88480701,0.00029313,2]
[341575173,1731005499421,-3373.99,0.00029313,2]
[341575174,1731005499432,-740.85,0.00029313,2]
[341575175,1731005499442,-500.0,0.00029313,2]
[341575176,1731005499452,-1079.81,0.00029313,2]
[341575177,1731005499462,-151.0,0.00029313,7]
[341575178,1731005499471,-289.64487919,0.00029313,2]
[341575179,1731005499481,-1468.77,0.00029313,2]
[341575180,1731005499490,-1540.59,0.00029313,2]
[341575181,1731005499499,-500.0,0.00029313,2]
[341575182,1731005499508,-500.0,0.00029313,2]
[341575183,1731005499518,-500.0,0.00029313,2]
[341575184,1731005499527,-1199.97,0.00029313,2]
[341575185,1731005499537,-580.59,0.00029313,2]
[341575186,1731005499546,-915.86,0.00029313,2]
[341575187,1731005499555,-500.0,0.00029313,2]
[341575188,1731005499565,-706.05,0.00029313,2]
[341575189,1731005499574,-1307.37,0.00029313,2]
[341575190,1731005499583,-2645.77,0.00029313,2]
[341575191,1731005499592,-151.0,0.00029313,7]
[341575192,1731005499601,-500.0,0.00029313,2]
[341575193,1731005499611,-178.32101886,0.00029313,2]
[341575194,1731005499621,-151.0,0.00029313,7]
[341575195,1731005499631,-584.94428042,0.00029313,2]
[341575196,1731005499640,-1298.14,0.00029313,2]
[341575197,1731005499651,-500.0,0.00029313,2]
[341575198,1731005499661,-151.0,0.00029313,7]
[341575199,1731005499671,-500.0,0.00029313,2]
[341575200,1731005499680,-500.0,0.00029313,2]
[341575201,1731005499689,-151.0,0.00029313,7]
[341575202,1731005499699,-570.58,0.00029313,2]
[341575203,1731005499709,-2471.29,0.00029313,2]
[341575204,1731005499718,-1311.87,0.00029313,2]
[341575205,1731005499727,-500.0,0.00029313,2]
[341575206,1731005499738,-820.03,0.00029313,2]
[341575207,1731005499747,-894.89,0.00029313,2]
[341575208,1731005499756,-500.0,0.00029313,2]
[341575209,1731005499768,-500.0,0.00029313,2]
[341575210,1731005499778,-2081.12,0.00029313,2]
[341575211,1731005499787,-920.52,0.00029313,2]
[341575212,1731005499797,-500.0,0.00029313,2]
[341575213,1731005499806,-921.26,0.00029313,2]
[341575214,1731005499815,-903.72,0.00029313,2]
[341575215,1731005499824,-500.0,0.00029313,2]
[341575216,1731005499834,-663.16,0.00029313,2]
[341575217,1731005499844,-151.0,0.00029313,7]
[341575218,1731005499853,-1075.23,0.00029313,2]
[341575219,1731005499862,-1606.01,0.00029313,2]
[341575220,1731005499872,-500.0,0.00029313,2]
[341575221,1731005499880,-507.76755976,0.00029313,2]
[341575222,1731005499890,-500.0,0.00029313,2]
[341575223,1731005499901,-2000.0,0.00029313,2]
[341575224,1731005499913,-504.42051891,0.00029313,2]
[341575225,1731005499923,-500.0,0.00029313,2]
[341575226,1731005499932,-500.0,0.00029313,2]
[341575227,1731005499941,-656.31,0.00029313,2]
[341575228,1731005499950,-933.57,0.00029313,2]
[341575229,1731005499959,-1316.03,0.00029313,2]
[341575230,1731005499968,-511.86,0.00029313,2]
[341575231,1731005499977,-2787.88,0.00029313,2]
[341575232,1731005499986,-1233.83,0.00029313,2]
[341575233,1731005499996,-500.0,0.00029313,2]
[341575234,1731005500005,-1649.02,0.00029313,2]
[341575235,1731005500014,-500.0,0.00029313,2]
[341575236,1731005500023,-1277.07,0.00029313,2]
[341575237,1731005500032,-500.0,0.00029313,2]
[341575238,1731005500042,-795.32,0.00029313,2]
[341575239,1731005500051,-1053.58,0.00029313,2]
[341575240,1731005500060,-500.0,0.00029313,2]
[341575241,1731005500069,-1483.3,0.00029313,2]
[341575242,1731005500079,-500.0,0.00029313,2]
[341575243,1731005500087,-1139.35,0.00029313,2]
[341575244,1731005500097,-1757.95,0.00029313,2]
[341575245,1731005500107,-158.372318,0.00029313,7]
[341575246,1731005500116,-722.47,0.00029313,2]
[341575247,1731005500125,-569.02,0.00029313,2]
[341575248,1731005500135,-500.0,0.00029313,2]
[341575249,1731005500144,-158.372318,0.00029313,7]
[341575250,1731005500157,-500.0,0.00029313,2]
[341575251,1731005500166,-2079.68,0.00029313,2]
[341575252,1731005500176,-500.0,0.00029313,2]
[341575253,1731005500185,-500.0,0.00029313,2]
[341575254,1731005500195,-500.0,0.00029313,2]
[341575255,1731005500204,-621.46,0.00029313,2]
[341575256,1731005500214,-4585.15,0.00029313,2]
[341575257,1731005500224,-500.0,0.00029313,2]
[341575258,1731005500233,-705.61,0.00029313,2]
[341575259,1731005500451,-1632.43,0.00029313,2]
[341575260,1731005500461,-2335.67,0.00029313,2]
[341575261,1731005500474,-500.0,0.00029313,2]
[341575262,1731005500483,-1245.31,0.00029313,2]
[341575263,1731005500493,-500.0,0.00029313,2]
[341575264,1731005500502,-737.75,0.00029313,2]
[341575265,1731005500512,-500.0,0.00029313,2]
[341575266,1731005500521,-990.76,0.00029313,2]
[341575267,1731005500531,-1489.7,0.00029313,2]
[341575268,1731005500541,-500.0,0.00029313,2]
[341575269,1731005500550,-746.59,0.00029313,2]
[341575270,1731005500559,-553.82353048,0.00029313,2]
[341575271,1731005500569,-500.0,0.00029313,2]
[341575272,1731005500578,-2626.87,0.00029313,2]
[341575273,1731005500587,-500.0,0.00029313,2]
[341575274,1731005500597,-748.79,0.00029313,2]
[341575275,1731005500606,-551.81,0.00029313,2]
[341575276,1731005500615,-1029.44,0.00029313,2]
[341575277,1731005500623,-152.727666,0.00029313,7]
[341575278,1731005500632,-500.0,0.00029313,7]
[341575279,1731005500642,-500.0,0.00029313,2]
[341575280,1731005500657,-580.18385663,0.00029313,2]
[341575281,1731005500666,-1187.0,0.00029313,2]
[341575282,1731005500675,-500.0,0.00029313,2]
[341575283,1731005500684,-589.86,0.00029313,2]
[341575284,1731005500694,-583.33,0.00029313,2]
[341575285,1731005500704,-299.908787,0.00029314,7]
[341575286,1731005500713,-299.908787,0.00029314,7]
[341575287,1731005500722,-151.0,0.00029314,7]
[341575288,1731005500732,-2000.0,0.00029343,2]
[341575289,1731005500742,-200.0,0.00029343,2]
[341575290,1731005500751,-3000.0,0.00029365,2]
[341575291,1731005500761,-229.236067,0.00029365,2]
[341575292,1731005500770,-3823.472913,0.00029365,7]
[341575293,1731005500780,-988.035828,0.00029365,7]
[341575294,1731005500789,-988.035828,0.00029365,7]
[341575295,1731005500798,-151.0,0.00029365,7]
[341575296,1731005500808,-151.0,0.00029365,7]
[341575297,1731005500818,-151.0,0.00029365,7]
[341575298,1731005500826,-525.08,0.00029365,2]
[341575299,1731005500836,-2537.9,0.00029365,2]
[341575300,1731005500845,-1533.51,0.00029365,2]
[341575301,1731005500854,-339.6254633,0.00029365,2]
[341575302,1731005500864,-965.15,0.00029365,2]
[341575303,1731005500873,-681.92,0.00029365,2]
[341575304,1731005500882,-2552.45,0.00029365,2]
[341575305,1731005500891,-4225.14,0.00029365,2]
[341575306,1731005500903,-982.85,0.00029365,2]
[341575307,1731005500913,-982.63,0.00029365,2]
[341575308,1731005500922,-849.45,0.00029366,2]
[341575309,1731005500930,-500.0,0.00029366,2]
[341575310,1731005500940,-1288.89,0.00029366,2]
[341575311,1731005500949,-500.0,0.00029367,2]
[341575312,1731005500958,-151.0,0.00029367,7]
[341575313,1731005500967,-151.0,0.00029367,7]
[341575314,1731005500977,-192.877593,0.00029367,7]
[341575315,1731005500986,-211.791899,0.00029367,7]
[341575316,1731005500995,-211.791899,0.00029367,7]
[341575317,1731005501004,-151.0,0.00029367,7]
[341575318,1731005501013,-500.0,0.00029367,2]
[341575319,1731005501021,-500.0,0.00029367,2]
[341575320,1731005501031,-738.09,0.00029367,2]
[341575321,1731005501041,-500.0,0.00029367,2]
[341575322,1731005501050,-500.0,0.00029367,2]
[341575323,1731005501059,-500.0,0.00029367,2]
[341575324,1731005501068,-500.0,0.00029367,2]
[341575325,1731005501077,-500.0,0.00029367,2]
[341575326,1731005501087,-500.0,0.00029367,2]
[341575327,1731005501095,-510.62550714,0.00029367,2]
[341575328,1731005501105,-500.0,0.00029367,2]
[341575329,1731005501114,-767.09,0.00029367,2]
[341575330,1731005501122,-500.0,0.00029367,2]
[341575331,1731005501131,-500.0,0.00029367,2]
[341575332,1731005501141,-500.0,0.00029367,2]
[341575333,1731005501152,-500.0,0.00029367,2]
[341575334,1731005501161,-500.0,0.00029367,2]
[341575335,1731005501171,-530.85,0.00029367,2]
[341575336,1731005501180,-890.1,0.00029367,2]
[341575337,1731005501189,-500.0,0.00029367,2]
[341575338,1731005501199,-524.15,0.00029367,2]
[341575339,1731005501207,-684.7,0.00029367,2]
[341575340,1731005501217,-500.0,0.00029367,2]
[341575341,1731005501226,-500.0,0.00029367,2]
[341575342,1731005501235,-500.0,0.00029367,2]
[341575343,1731005501244,-983.12,0.00029367,2]
[341575344,1731005501256,-1329.19,0.00029367,2]
[341575345,1731005501266,-500.0,0.00029367,2]
[341575346,1731005501275,-500.0,0.00029367,2]
[341575347,1731005501284,-617.81758357,0.00029367,2]
[341575348,1731005501294,-500.0,0.00029367,2]
[341575349,1731005501304,-500.0,0.00029367,2]
[341575350,1731005501314,-500.0,0.00029367,2]
[341575351,1731005501323,-500.0,0.00029367,2]
[341575352,1731005501333,-500.0,0.00029367,2]
[341575353,1731005501343,-1703.72,0.00029367,2]
[341575354,1731005501352,-833.69,0.00029367,2]
[341575355,1731005501361,-500.0,0.00029367,2]
[341575356,1731005501371,-500.0,0.00029367,2]
[341575357,1731005501380,-500.0,0.00029367,2]
[341575358,1731005501389,-500.0,0.00029367,2]
[341575359,1731005501398,-500.0,0.00029367,2]
[341575360,1731005501407,-556.39,0.00029367,2]
[341575361,1731005501418,-500.0,0.00029367,2]
[341575362,1731005501427,-863.33,0.00029367,2]
[341575363,1731005501437,-501.95611155,0.00029367,2]
[341575364,1731005501446,-480.01252977,0.00029367,2]
[341575365,1731005501455,-500.0,0.00029367,2]
[341575366,1731005501464,-500.0,0.00029367,2]